[Event "55th Biel Festival ATO 2022"]
[Site "Biel"]
[Date "2022.07.22"]
[Round "9.4"]
[White "Abdulrahim, Salem"]
[Black "Arndt Uwe"]
[Result "1-0"]
[ECO "C06"]
[WhiteElo "1662"]
[BlackElo "1964"]
[Annotator "TA"]
[PlyCount "177"]
[EventDate "2022.07.13"]
[EventType "swiss"]
[EventCountry "SUI"]
[SourceTitle "playchess.com"]
[Source "ChessBase"]
[SourceQuality "1"]
[TimeControl "40/5400+30:1800+30"]

{[%evp 16,177,40,38,60,65,77,60,72,26,37,13,31,30,34,24,35,-50,-34,-52,2,0,0,-46,-50,-45,-41,-56,-50,-93,-75,-84,-93,-81,0,-24,-19,-24,-26,-20,0,-33,-27,-31,0,-39,-47,-47,-52,-49,-29,-77,-13,-15,-12,-8,-18,-20,-18,-20,0,-25,0,0,0,0,112,119,79,91,144,148,169,159,144,144,140,66,66,66,89,66,200,178,294,292,279,268,612,597,4141,4141,4141,2709,6266,4141,6266,6266,6266,6266,6111,6112,5979,5845,5824,5817,5744,5734,5741,5718,5710,5717,5702,5639,5622,5610,4141,0,5514,5514,5477,4797,5033,4560,4694,4689,4689,4141,1350,1181,4685,4141,4141,4140,4148,4141,4133,4133,4133,4129,29964,29964,29976,29978,29978,29979,29979,29980,29979,29980,29980,29981,29981,29982,29982,29983,29983,29984,29984,29984,29984,29985,29985,29985]} 1. e4 {[%emt 0:00:03]} e6 {[%emt 0:00:06]} 2. d4 {[%emt 0:00:19]} d5 {[%emt 0:00:05]} 3. Nd2 {[%emt 0:00:05]} Be7 {[%emt 0:00:11]} 4. Bd3 {[%emt 0:00:27]} Nf6 {[%emt 0:02:23]} 5. e5 {[%emt 0:00:15]} Nfd7 {[%emt 0:00:06]} 6. Ne2 {[%emt 0:00:32]} c5 {[%emt 0:00:14]} 7. c3 {[%emt 0:00:05]} Nc6 {[%emt 0:00:27]} 8. O-O {[%emt 0:00:40]} cxd4 {[%emt 0:07:50]} 9. cxd4 {[%emt 0:00:07]} Nb4 {[%emt 0:03:03] C06: French Tarrasch: 3...Nf6 4 e5 Nfd7 5 Bd3 main lines.} 10. Bb1 {[%emt 0:02:32]} Nb6 {[%emt 0:03:47]} 11. Nf3 {[%emt 0:05:04]} Bd7 {[%emt 0:01:40] White is slightly better.} 12. b3 {[%emt 0:05:05] [#]} ({Better is} 12. a3 $16 Nc6 13. Bd3) 12... Bb5 $146 {[%emt 0:09:25]} ({Predecessor:} 12... a5 13. a3 Na6 14. a4 Nb4 15. Nc3 Nc8 16. Ne1 f5 17. exf6 Bxf6 18. Nf3 O-O {½-½ (32) Black,R (2254)-Knott,S (2351) Birmingham 2000}) 13. Ba3 {[%emt 0:04:25]} Rc8 {[%emt 0:02:19]} 14. Qd2 {[%emt 0:05:43]} a5 {[%emt 0:01:26]} 15. Re1 {[%emt 0:02:39]} Nd7 {[%emt 0:04:35]} 16. Qf4 {[%emt 0:06:02]} ({White should try} 16. Nf4 $14) 16... g5 $1 $15 {[%emt 0:04:31]} 17. Qe3 {[%emt 0:05:19]} h5 {[%emt 0:05:13]} (17... g4 $15 18. Nd2 Bg5) 18. Nc3 {[%emt 0:08:07]} Ba6 {[%emt 0:02:02]} 19. Bxb4 {[%emt 0:02:11]} (19. Rd1 $11 {was preferrable.}) 19... Bxb4 {[%emt 0:00:12]} 20. Rc1 {[%emt 0:01:33]} g4 {[%emt 0:04:57]} 21. Ne1 {[%emt 0:00:50]} Rc6 {[%emt 0:06:43]} 22. a3 {[%emt 0:07:55]} Be7 {[%emt 0:01:03] White must now prevent ...Bg5.} 23. f4 {[%emt 0:00:04] Prevents Bg5.} gxf3 {[%emt 0:01:12]} 24. Nxf3 {[%emt 0:00:05]} Qc8 {[%emt 0:04:46]} (24... Bf8 $1 $17 {[%cal Rf8h6] ...Bh6 is the strong threat.} 25. Ne2 Bh6) 25. Ne2 {[%emt 0:03:00]} Bxe2 {[%emt 0:03:28]} 26. Rxc6 {[%emt 0:00:36]} Qxc6 {[%emt 0:00:21]} 27. Qxe2 {[%emt 0:00:08]} Bxa3 {[%emt 0:03:40]} 28. Qf1 {[%emt 0:09:21]} Bb4 {[%emt 0:03:47]} 29. Bd3 {[%emt 0:03:43] And now Rc1 would win.} Rf8 {[%emt 0:05:49]} (29... Qb6 $5 {[%cal Rd7e5]} 30. Kh1 Kd8 $11) 30. Rc1 {[%emt 0:11:09]} (30. Bb5 $5 {[%cal Rb5c6]} Qb6 31. Qd3 $11) 30... Qb6 {[%emt 0:00:16][%cal Od7e5]} 31. Rc8+ {[%emt 0:03:31]} Ke7 {[%emt 0:00:12][%cal Be8e7,Be7f8,Bf8g7][%mdl 32]} 32. Rxf8 {[%emt 0:00:11]} Kxf8 {[%emt 0:03:46]} 33. Ng5 {[%emt 0:02:00]} ({Don't go for} 33. Qc1 $2 Nxe5 $1 34. Nxe5 Qxd4+ 35. Kf1 Qxe5 $19) (33. Kh1 $1 $11 {might be stronger.}) 33... Nxe5 {[%emt 0:01:26]} (33... Qxd4+ $2 34. Kh1 Nxe5 35. Nxe6+ Kg8 36. Nxd4 $18) (33... f6 $1 $17 34. Qf4 Bc3) 34. Kh1 $11 {[%emt 0:01:15]} Be7 {[%emt 0:00:48]} 35. Nh7+ $40 {[%emt 0:03:33][%mdl 128] White has some attack.} Kg7 {[%emt 0:01:16]} 36. dxe5 {[%emt 0:00:16]} Qe3 {[%emt 0:01:19]} 37. Nf6 {[%emt 0:08:06]} Qxe5 {[%emt 0:00:31]} 38. Ne8+ {[%emt 0:00:22]} Kf8 {[%emt 0:04:24]} 39. Bg6 $1 {[%emt 0:01:04][%csl Gg6][%cal Rf1f7]} f6 {[%emt 0:00:08]} ({Don't play} 39... Kxe8 40. Qxf7+ Kd8 41. Qe8+ Kc7 42. Qxe7+ Kb6 43. h4 $16 (43. Qd8+ Kb5 $16)) 40. Qc1 {[%emt 0:00:35] White threatens Qh6+ and mate.} Qg5 {[%emt 0:00:40] Against Qh6+} (40... Kg8 $11) 41. Qxg5 $16 {[%emt 0:30:27] White is more active.} fxg5 {[%emt 0:30:07]} 42. Bxh5 {[%emt 0:00:18]} Bc5 {[%emt 0:02:20]} (42... Ba3 $142) 43. Nc7 $1 {[%emt 0:01:07]} Ke7 {[%emt 0:00:16]} 44. Bg4 {[%emt 0:00:05]} Be3 {[%emt 0:01:11]} 45. Nxe6 {[%emt 0:01:27]} Kd6 {[%emt 0:00:57] [#]} 46. g3 {[%emt 0:00:00]} ({White should play} 46. Ng7 $1 $16 {[%cal Rg7f5] Hoping for Nf5+.} Kc5 47. Nf5) 46... b5 $1 $14 {[%emt 0:00:00]} 47. Ng7 $1 {[%emt 0:00:00] aiming for Nf5+.} Kc5 {[%emt 0:00:00] White stays focused until the end.} 48. Nf5 {[%emt 0:00:00]} Bc1 {[%emt 0:00:00] [#]} (48... d4 $14 49. Bh5 Kb4) 49. Bd1 $1 $18 {[%emt 0:00:00]} Bb2 {[%emt 0:00:00]} (49... g4 $142 50. Kg2 (50. Bxg4 a4 $16) 50... Bb2) 50. Kg2 {[%emt 0:00:00]} Kb4 {[%emt 0:00:00]} 51. Ne7 {[%emt 0:00:00]} a4 $2 {[%emt 0:00:00]} (51... d4 52. Nc6+ Kc3 53. Nxa5 Kd2) 52. bxa4 {[%emt 0:00:00]} bxa4 {[%emt 0:00:00]} 53. Nxd5+ {[%emt 0:00:00]} Kc5 {[%emt 0:00:00]} 54. Ne3 {[%emt 0:00:00]} Bc1 {[%emt 0:00:00]} 55. Kf3 {[%emt 0:00:00]} Kd4 {[%emt 0:00:00]} 56. Nf5+ {[%emt 0:00:00]} Ke5 {[%emt 0:00:00]} 57. Kg4 {[%emt 0:00:00]} a3 {[%emt 0:00:00]} 58. Bb3 {[%emt 0:00:00]} Bd2 {[%emt 0:00:00]} 59. Nh6 {[%emt 0:00:00]} Kf6 {[%emt 0:00:00]} 60. Nf7 {[%emt 0:00:00]} Bc1 {[%emt 0:00:00]} 61. Nd6 {[%emt 0:00:00]} Kg6 {[%emt 0:00:00]} 62. Bc2+ {[%emt 0:00:00]} Kf6 {[%emt 0:00:00]} 63. Bb1 {[%emt 0:00:00]} Ke5 {[%emt 0:00:00]} 64. Nb5 {[%emt 0:00:00]} Kf6 {[%emt 0:00:00]} 65. Nc3 {[%emt 0:00:00]} Ke5 {[%emt 0:00:00]} 66. Nb5 {[%emt 0:00:00]} Kf6 $1 {[%emt 0:00:00]} 67. h3 {[%emt 0:00:00]} Ke6 {[%emt 0:00:00]} 68. Nd4+ {[%emt 0:00:00]} Ke5 {[%emt 0:00:00]} 69. Nf3+ {[%emt 0:00:00]} Kf6 {[%emt 0:00:00]} 70. Kh5 {[%emt 0:00:00]} Be3 {[%emt 0:00:00]} 71. Nh2 {[%emt 0:00:34] Ng4+ would kill now.} Bc1 {[%emt 0:00:00]} 72. Ng4+ {[%emt 0:01:54]} Kg7 {[%emt 0:00:00]} 73. Ne5 {[%emt 0:00:41]} Kf6 {[%emt 0:00:00]} 74. Nc4 {[%emt 0:00:20]} Kg7 {[%emt 0:00:00]} 75. Kg4 {[%emt 0:00:16]} Kf6 {[%emt 0:00:00]} 76. Kf3 {[%emt 0:00:04]} Ke6 {[%emt 0:00:00]} 77. Ke2 {[%emt 0:00:49] White wants to mate with Kd1.} Kd5 {[%emt 0:00:00] [#]} 78. Kd1 $1 {[%emt 0:01:48] White mates.} g4 {[%emt 0:00:00]} (78... Kxc4 79. Kxc1) 79. Kxc1 {[%emt 0:03:55]} gxh3 {[%emt 0:00:00]} 80. Ne3+ {[%emt 0:00:06]} Kd4 {[%emt 0:00:00]} 81. Nf1 {[%emt 0:00:50]} Kc3 {[%emt 0:00:14]} 82. Ba2 {[%emt 0:00:15]} Kd3 {[%emt 0:00:57]} 83. Kd1 {[%emt 0:00:06]} Kd4 {[%emt 0:01:41]} 84. Kd2 {[%emt 0:00:23]} Ke4 {[%emt 0:01:02]} 85. Ke2 {[%emt 0:00:06]} Kf5 {[%emt 0:00:17]} 86. Kf3 {[%emt 0:00:06]} Kg5 {[%emt 0:00:10]} 87. Nh2 {[%emt 0:00:20]} Kh5 {[%emt 0:00:13]} 88. Kf4 {[%emt 0:00:19]} Kg6 {[%emt 0:00:30]} 89. Kg4 {[%emt 0:00:08] Weighted Error Value: White=0.15 (very precise) /Black=0.32} 1-0

[Event "55th Biel Festival ATO 2022"]
[Site "Biel"]
[Date "2022.07.22"]
[Round "9.5"]
[White "Klein Ethan"]
[Black "Mirski, Michal"]
[Result "0-1"]
[ECO "B06"]
[WhiteElo "1952"]
[BlackElo "1868"]
[Annotator "TA"]
[PlyCount "112"]
[EventDate "2022.07.13"]
[EventType "swiss"]
[EventCountry "SUI"]
[SourceTitle "playchess.com"]
[Source "ChessBase"]
[SourceQuality "1"]
[TimeControl "40/5400+30:1800+30"]

{[%evp 9,112,37,81,88,90,33,42,33,43,-110,-114,-241,-236,-283,-265,-297,-275,-316,-176,-168,-62,-67,-55,-202,-60,-144,-145,-213,-79,-206,-207,-224,-120,-111,-108,-110,-75,-81,-43,-112,-71,-73,-58,-108,-109,-158,-163,-200,-168,-173,-176,-169,-161,-216,-162,-215,-208,-210,-159,-165,-154,-174,-85,-121,0,-180,-179,-29972,-29971,-29973,-29974,-29978,-29979,-29979,-29980,-29982,-29982,-29982,-29983,-29983,-29984,-29984,-29983,-29983,-29982,-29984,-29984,-29985,-29982,-29982,-29983,-29983,-29984,-29984,-29984,-29984,-29985,-29985,-29986,-29987,-29988,-29988,-29989,-29989,-29989]} 1. d4 {[%emt 0:00:07] Finkel,A} d6 {[%emt 0:03:41]} 2. e4 {[%emt 0:00:25]} g6 {[%emt 0:00:14]} 3. Nc3 {[%emt 0:00:18]} Bg7 {[%emt 0:00:04]} 4. Be3 {[%emt 0:00:25]} a6 {[%emt 0:00:04]} 5. h4 {[%emt 0:00:59]} b5 {[%emt 0:03:09] [#]} 6. h5 $1 {[%emt 0:05:31] B06: Modern Defence.} Bb7 {[%emt 0:00:44]} 7. Bd3 {[%emt 0:07:03]} (7. a3 $16) 7... Nd7 $14 {[%emt 0:00:15]} 8. Nf3 {[%emt 0:11:56] White is slightly better.} c5 {[%emt 0:03:18] [#]} 9. e5 $146 {[%emt 0:24:23] Prevents Ngf6.} (9. Qd2 $14 {stays ahead.}) ({Predecessor:} 9. h6 Bxd4 10. Nxd4 cxd4 11. Bxd4 Ngf6 12. a3 O-O 13. Qd2 e5 14. Be3 Rc8 15. O-O-O {½-½ (34) Bruzon Batista,L (2584)-Franco Ocampos,Z (2482) Linares 2001 CBM 081 [Finkel,A]}) 9... cxd4 $17 {[%emt 1:04:02]} 10. e6 {[%emt 0:14:33]} (10. Nxd4 $17 dxe5 11. Nb3) 10... dxe3 $19 {[%emt 0:00:44]} (10... dxc3 11. exf7+ Kxf7 12. hxg6+ Kf8 13. Ng5) 11. exf7+ {[%emt 0:02:02]} Kxf7 {[%emt 0:00:17]} 12. hxg6+ {[%emt 0:14:03]} Ke8 {[%emt 0:09:42][%cal Bf7e8,Be8d7,Bd7c7][%mdl 32]} (12... hxg6 13. Ng5+ Kf8 14. Ne6+ Kf7 15. Nxd8+ Rxd8 16. Rxh8 Bxh8 17. Qg4 Bxc3+ 18. bxc3 exf2+ 19. Kxf2 $18) 13. gxh7 {[%emt 0:02:45] Bg6+ is the strong threat.} exf2+ {[%emt 0:01:53]} (13... Qa5 $142 14. fxe3 Bxc3+ 15. bxc3 Qxc3+ 16. Ke2 Ngf6 17. Bg6+ Kf8) 14. Kf1 {[%emt 0:00:18]} Nf8 {[%emt 0:03:04]} (14... Qc8 $19 15. Ng5 Ne5 16. hxg8=Q+ Rxg8) 15. hxg8=Q $15 {[%emt 0:05:18]} Rxg8 {[%emt 0:00:48]} 16. Ng5 {[%emt 0:04:12]} (16. Be4 $15 Bxe4 17. Nxe4) 16... Bf6 {[%emt 0:03:15] A strong pair of Bishops.} (16... Bxc3 $19 17. Qh5+ Kd7 18. bxc3 Qb6) 17. Qh5+ {[%emt 0:00:23]} ({White should play} 17. Be4 $15 Qc7 18. Bxb7 Qxb7 19. Nge4) 17... Kd7 $17 {[%emt 0:00:16]} 18. Nge4 {[%emt 0:00:58]} (18. Nce4 $17 {was called for.} Bxg5 19. Nxg5) 18... Be5 {[%emt 0:03:10]} (18... Bxc3 $19 {and Black stays clearly on top.} 19. bxc3 Ne6) 19. Rd1 {[%emt 0:02:24]} (19. Nc5+ $17 {was the only defense.} dxc5 20. Qxe5 Bxg2+ 21. Kxf2 Bxh1 22. Rd1 (22. Rxh1 Kc8 $17)) 19... Kc7 $19 {[%emt 0:00:28] And now ...Qd7 would win.} (19... Ne6 20. Qf5 Bxc3 21. bxc3 $15) 20. Qf7 {[%emt 0:00:30] [#]} Nd7 {[%emt 0:00:35] Dancing on a razor blade.} (20... Rg7 $1 $19 {[%cal Rg7f7]} 21. Qb3 Nd7) 21. Nd5+ $17 {[%emt 0:00:40]} Bxd5 {[%emt 0:00:19]} 22. Qxd5 {[%emt 0:00:06]} Nb6 {[%emt 0:00:27]} ({Not} 22... Bxb2 23. Rh7 Nb6 24. Qf7 $15) 23. Qe6 {[%emt 0:00:27]} Qd7 {[%emt 0:00:49]} 24. Qxd7+ {[%emt 0:00:52]} (24. Nc5 $1 $15 Qxe6 25. Nxe6+ Kd7 26. Bf5) 24... Nxd7 {[%emt 0:00:07]} 25. Rh7 {[%emt 0:01:18]} Rh8 $36 {[%emt 0:00:55][%mdl 2048] Black has some pressure. Black is more active.} (25... d5 $5 {[%cal Rd5e4]} 26. Nxf2 Rae8 $17) 26. Rxh8 {[%emt 0:00:56]} (26. Rxe7 $15 Rh1+ 27. Ke2 Rxd1 28. Kxd1) 26... Rxh8 {[%emt 0:00:02]} ({Inferior is} 26... Bxh8 27. c3 $15) 27. Kxf2 {[%emt 0:00:20]} (27. c3 $142) 27... Bxb2 {[%emt 0:00:16]} 28. g4 {[%emt 0:00:23]} Bd4+ {[%emt 0:00:16]} 29. Kg3 {[%emt 0:00:17]} Be5+ {[%emt 0:00:09]} 30. Kg2 {[%emt 0:00:33]} Rg8 {[%emt 0:01:15] Against Ng5} 31. Kf3 {[%emt 0:00:35]} (31. Nf2 $142) 31... Rf8+ {[%emt 0:00:20]} 32. Kg2 {[%emt 0:00:20]} (32. Ke3 {was worth a try.}) 32... Rf4 $19 {[%emt 0:00:23]} 33. Kh3 {[%emt 0:00:25]} Nf8 {[%emt 0:01:01]} 34. Rf1 {[%emt 0:00:57]} Ne6 {[%emt 0:00:19]} 35. Kh4 {[%emt 0:00:39]} Bf6+ {[%emt 0:01:02]} (35... d5 $19 {is more deadly.} 36. Rxf4 Bxf4) 36. Nxf6 {[%emt 0:00:27]} Rxf6 {[%emt 0:00:33]} (36... exf6 $17 37. Re1 Nc5) 37. Rxf6 {[%emt 0:00:33] White is now going downhill.} (37. g5 $11 {and White stays safe.} Rxf1 38. Bxf1) 37... exf6 $17 {[%emt 0:00:03][%mdl 4096] Endgame KB-KN} 38. Kh5 $2 {[%emt 0:00:36]} (38. Kg3 $19) 38... Nf4+ {[%emt 0:00:32] Black mates.} 39. Kh6 {[%emt 0:00:04]} Nxd3 {[%emt 0:00:14]} 40. cxd3 {[%emt 0:00:04] KP-KP} Kd7 {[%emt 0:00:07]} 41. Kg6 {[%emt 0:31:09]} Ke6 {[%emt 0:30:20]} 42. d4 {[%emt 0:00:29]} d5 {[%emt 0:00:19]} 43. g5 {[%emt 0:00:36]} fxg5 {[%emt 0:00:03]} 44. Kxg5 {[%emt 0:00:02] K3P-KPP} a5 {[%emt 0:00:07]} 45. Kf4 {[%emt 0:00:03]} Kf6 {[%emt 0:00:37]} 46. Ke3 {[%emt 0:01:25]} Kg5 {[%emt 0:00:20]} 47. Kf3 {[%emt 0:00:00]} Kf5 {[%emt 0:00:00]} 48. Ke3 {[%emt 0:00:00]} Kg4 {[%emt 0:00:00]} 49. a3 {[%emt 0:00:00]} Kg3 {[%emt 0:00:00]} 50. Ke2 {[%emt 0:00:00]} Kf4 {[%emt 0:00:00]} 51. Kd3 {[%emt 0:00:00]} Kf3 {[%emt 0:00:00]} 52. Kd2 {[%emt 0:00:00]} Ke4 {[%emt 0:00:00]} 53. Kc3 {[%emt 0:00:00]} Ke3 {[%emt 0:00:00]} 54. a4 {[%emt 0:00:00]} bxa4 {[%emt 0:00:00]} 55. Kb2 {[%emt 0:00:00]} Kxd4 {[%emt 0:00:00]} 56. Ka3 {[%emt 0:00:00]} Kc3 {[%emt 0:00:00] Weighted Error Value: White=0.38/Black=0.26 (precise)} 0-1

[Event "55th Biel Festival ATO 2022"]
[Site "Biel"]
[Date "2022.07.22"]
[Round "9.6"]
[White "Forney, Robert"]
[Black "Hamad Bader"]
[Result "1/2-1/2"]
[ECO "B33"]
[WhiteElo "1828"]
[BlackElo "1918"]
[Annotator "TA"]
[PlyCount "121"]
[EventDate "2022.07.13"]
[EventType "swiss"]
[EventCountry "SUI"]
[SourceTitle "playchess.com"]
[Source "ChessBase"]
[SourceQuality "1"]
[TimeControl "40/5400+30:1800+30"]

{[%evp 27,121,18,24,6,87,87,87,87,91,83,92,86,89,57,100,100,101,100,101,101,101,101,114,108,105,114,127,131,154,149,151,156,160,150,164,162,253,225,287,208,227,222,216,202,202,195,239,212,220,168,240,211,574,519,516,509,450,144,144,0,144,95,95,95,95,95,95,95,95,95,95,23,23,23,23,23,23,23,23,23,23,23,23,23,23,0,0,0,0,0,0,0,0,0,0,0]} 1. e4 {[%emt 0:00:01]} c5 {[%emt 0:01:30]} 2. Nf3 {[%emt 0:00:02]} e6 {[%emt 0:00:07]} 3. d4 {[%emt 0:00:03]} cxd4 {[%emt 0:00:05]} 4. Nxd4 {[%emt 0:00:02]} Nf6 {[%emt 0:00:07]} 5. Nc3 {[%emt 0:00:05]} Nc6 {[%emt 0:00:04]} 6. Ndb5 {[%emt 0:00:13][%cal Bd4b5,Bb5a3,Ba3c2,Bc2e3,Be3f5][%mdl 32]} d6 {[%emt 0:00:08]} 7. Bf4 {[%emt 0:00:02]} e5 {[%emt 0:00:05]} 8. Bg5 {[%emt 0:00:30]} a6 {[%emt 0:00:05]} 9. Na3 {[%emt 0:00:00]} b5 {[%emt 0:00:05]} 10. Nd5 {[%emt 0:00:00]} Be7 {[%emt 0:00:06]} 11. Bxf6 {[%emt 0:00:00]} Bxf6 {[%emt 0:00:04]} 12. c3 {[%emt 0:00:00]} Ne7 {[%emt 0:00:25]} 13. Nc2 {[%emt 0:01:55]} Bb7 {[%emt 0:10:26]} 14. Nce3 {[%emt 0:00:31]} Bg5 {[%emt 0:00:19]} 15. Nxe7 {[%emt 0:07:21] [#] Threatens to win with N7f5. B33: Sicilian: Pelikan and Sveshnikov Variations.} Qxe7 {[%emt 0:11:17]} (15... Bxe3 $11 {remains equal.} 16. Nf5 Bc5) 16. Nf5 $16 {[%emt 0:01:28][%csl LRd6,LRe7,LRg7]} Qd7 {[%emt 0:02:35]} 17. Nxd6+ {[%emt 0:02:50] White is better.} Kf8 {[%emt 0:01:21]} 18. Nxb7 {[%emt 0:01:24]} Qxb7 {[%emt 0:00:06]} 19. Qd6+ {[%emt 0:01:29]} Qe7 {[%emt 0:03:33]} 20. Rd1 {[%emt 0:03:13]} Rd8 {[%emt 0:10:42]} 21. Qxd8+ {[%emt 0:00:39]} ({Reject} 21. Qxa6 $6 Rxd1+ 22. Kxd1 Qd7+ 23. Kc2 Qd2+ 24. Kb3 Qd1+ 25. Kb4 g6 26. Qxb5 Be7+ 27. Ka5 Bd8+ 28. Kb4 Be7+ 29. Ka5 Bd8+ 30. Kb4 Be7+ $11) 21... Qxd8 {[%emt 0:00:05]} 22. Rxd8+ {[%emt 0:00:04]} Bxd8 {[%emt 0:00:02][%mdl 4096] [#] Endgame KRB-KRB} 23. a4 $146 {[%emt 0:01:14]} ({Predecessor:} 23. Bd3 Bg5 24. Ke2 Ke7 25. Rd1 g6 26. Bc2 Rd8 27. Rxd8 Kxd8 28. Kd3 Kd7 29. c4 f5 30. cxb5 axb5 31. exf5 gxf5 {½-½ (44) Grosse,C (1408)-Adaszewski,P (1600) Leutersdorf 2006}) 23... bxa4 {[%emt 0:00:15]} 24. Bxa6 {[%emt 0:00:03]} h5 {[%emt 0:25:37]} 25. Ke2 {[%emt 0:04:31]} Rh6 {[%emt 0:00:26]} 26. Bb5 {[%emt 0:00:04]} Rb6 {[%emt 0:00:10]} 27. c4 {[%emt 0:00:19]} ({Of course not} 27. Bxa4 $6 Rxb2+ 28. Kf3 Bb6 $11) 27... Be7 {[%emt 0:00:26]} 28. Ra1 {[%emt 0:00:07]} a3 {[%emt 0:00:15]} 29. bxa3 {[%emt 0:00:45]} Bc5 {[%emt 0:00:08]} 30. a4 {[%emt 0:01:13]} Ke7 {[%emt 0:01:53]} 31. a5 {[%emt 0:00:58]} Rb7 {[%emt 0:00:35]} (31... Rb8 $142 32. a6 Bd4) 32. a6 {[%emt 0:00:24]} Ra7 {[%emt 0:00:04]} 33. Bc6 {[%emt 0:00:09] And now Bb7 would win.} Rc7 {[%emt 0:01:05]} 34. Bd5 {[%emt 0:07:11]} Ba7 {[%emt 0:04:39]} 35. Rb1 {[%emt 0:03:22]} Kd6 {[%emt 0:02:10]} 36. Rb5 {[%emt 0:02:30]} g5 {[%emt 0:04:27]} 37. f3 {[%emt 0:02:51]} f6 {[%emt 0:00:34]} 38. h3 {[%emt 0:01:45]} h4 {[%emt 0:03:16]} (38... Rc5 {might work better.} 39. Rb7 Rc7) 39. Kd3 $18 {[%emt 0:00:05] [#] Kc3 is the strong threat.} Rg7 $2 {[%emt 0:07:35]} (39... Rc5 {is tougher.} 40. Rb7 Rc7) 40. Kc3 {[%emt 0:00:58]} Re7 {[%emt 0:00:12]} 41. Kb4 {[%emt 0:30:15]} Rc7 {[%emt 0:34:11] Inhibits c5+.} 42. Bb7 $2 {[%emt 0:02:55]} (42. Kb3 $18 {has better winning chances.}) 42... Rc5 $16 {[%emt 0:05:46]} 43. Bd5 {[%emt 0:01:56]} (43. Kc3 $16) 43... Rxb5+ {[%emt 0:02:58]} (43... Rc7 $1 $11 44. Rb7 Bg1) 44. Kxb5 $11 {[%emt 0:03:18] KB-KB} ({White should try} 44. cxb5 Bd4 45. Bb7) 44... Bd4 $16 {[%emt 0:00:47]} 45. Bf7 {[%emt 0:03:35]} Ba7 {[%emt 0:01:16]} 46. Bg6 {[%emt 0:00:02]} Bd4 {[%emt 0:00:10]} 47. Bf5 {[%emt 0:00:02]} Ba7 {[%emt 0:00:07]} 48. Bg4 {[%emt 0:00:35]} Bd4 {[%emt 0:00:06]} 49. a7 {[%emt 0:00:21]} (49. Bc8 $16) 49... Bxa7 $11 {[%emt 0:00:07]} 50. Ka6 {[%emt 0:00:01]} Be3 {[%emt 0:00:14]} 51. Kb7 {[%emt 0:00:02]} Kc5 {[%emt 0:00:22]} 52. Be6 {[%emt 0:00:28]} Kd6 $1 {[%emt 0:00:10]} 53. Bd5 {[%emt 0:00:31]} Kd7 {[%emt 0:00:17]} 54. Bc6+ {[%emt 0:01:23]} Kd6 {[%emt 0:00:10]} 55. Bb5 {[%emt 0:00:12]} Bd4 {[%emt 0:00:18]} 56. Kc8 {[%emt 0:00:09]} Bb6 $1 {[%emt 0:00:17] The position is equal.} 57. Be8 {[%emt 0:01:21]} Kc5 {[%emt 0:00:44]} 58. Kd7 {[%emt 0:01:11]} Kxc4 {[%emt 0:00:25]} 59. Ke7 {[%emt 0:00:03]} Be3 {[%emt 0:00:36]} 60. Kxf6 {[%emt 0:00:12]} Bf4 {[%emt 0:00:06]} 61. Bh5 {[%emt 0:08:40] Blacks defense is rewarded with a draw.  Weighted Error Value: White=0.20 (precise) /Black=0.29 (precise)} 1/2-1/2